[Event "*** Titled Tuesday Blitz"]
[Site "Chess.com"]
[Date "2020.10.20"]
[Round "5"]
[White "enriquetejedor"]
[Black "mirceaparligras"]
[Result "1/2-1/2"]
[WhiteElo "2486"]
[BlackElo "2648"]
[TimeControl "180+1"]
[EndTime "11:01:06 PDT"]
[Termination "Game drawn - insufficient material"]

1. e4 {[%clk 0:02:50.5]} 1... c5 {[%clk 0:02:58.6]} 2. Nf3 {[%clk 0:02:49.3]}
2... d6 {[%clk 0:02:58.6]} 3. d4 {[%clk 0:02:49.1]} 3... cxd4 {[%clk 0:02:58.7]}
4. Nxd4 {[%clk 0:02:50]} 4... Nf6 {[%clk 0:02:59.1]} 5. Nc3 {[%clk 0:02:46.5]}
5... a6 {[%clk 0:02:59.3]} 6. g3 {[%clk 0:02:24.1]} 6... e5 {[%clk 0:02:57.5]}
7. Nde2 {[%clk 0:02:19.6]} 7... Be7 {[%clk 0:02:55.7]} 8. Bg2 {[%clk 0:02:19.6]}
8... O-O {[%clk 0:02:53.1]} 9. O-O {[%clk 0:02:19.3]} 9... b5 {[%clk 0:02:52.4]}
10. a4 {[%clk 0:02:18.3]} 10... b4 {[%clk 0:02:50]} 11. Nd5 {[%clk 0:02:07.3]}
11... Nxd5 {[%clk 0:02:45.8]} 12. Qxd5 {[%clk 0:02:00.1]} 12... Ra7 {[%clk
0:02:45.3]} 13. Be3 {[%clk 0:01:52.5]} 13... Be6 {[%clk 0:02:44.4]} 14. Qd3
{[%clk 0:01:44.5]} 14... Rb7 {[%clk 0:02:38.2]} 15. Rfd1 {[%clk 0:01:16.4]}
15... a5 {[%clk 0:02:33.3]} 16. Rd2 {[%clk 0:00:41.5]} 16... Qc7 {[%clk
0:02:21.3]} 17. b3 {[%clk 0:00:33.6]} 17... Nd7 {[%clk 0:02:19.6]} 18. Nc1
{[%clk 0:00:28.7]} 18... Rc8 {[%clk 0:02:14.9]} 19. Qe2 {[%clk 0:00:24.8]} 19...
Nc5 {[%clk 0:01:51.1]} 20. Nd3 {[%clk 0:00:22.8]} 20... Nxd3 {[%clk 0:01:48.5]}
21. Qxd3 {[%clk 0:00:21.2]} 21... h6 {[%clk 0:01:36.5]} 22. h4 {[%clk
0:00:15.1]} 22... Qb8 {[%clk 0:01:30.4]} 23. Rad1 {[%clk 0:00:09.9]} 23... Rc3
{[%clk 0:01:29.1]} 24. Qa6 {[%clk 0:00:07.1]} 24... Qc7 {[%clk 0:01:11.2]} 25.
Qe2 {[%clk 0:00:06.4]} 25... Rb8 {[%clk 0:01:09.1]} 26. Bf1 {[%clk 0:00:06.1]}
26... Rc8 {[%clk 0:01:07.7]} 27. Qb5 {[%clk 0:00:02.6]} 27... h5 {[%clk
0:00:43.6]} 28. Be2 {[%clk 0:00:02]} 28... Rb8 {[%clk 0:00:40.6]} 29. Qa6 {[%clk
0:00:01.9]} 29... Rc6 {[%clk 0:00:29.5]} 30. Qd3 {[%clk 0:00:01.6]} 30... g6
{[%clk 0:00:26.3]} 31. Bf1 {[%clk 0:00:02]} 31... Rc3 {[%clk 0:00:26]} 32. Qe2
{[%clk 0:00:02.1]} 32... Rc8 {[%clk 0:00:25.3]} 33. Qa6 {[%clk 0:00:02.1]} 33...
Rc6 {[%clk 0:00:24.4]} 34. Qb5 {[%clk 0:00:02]} 34... Rb8 {[%clk 0:00:23.6]} 35.
Qd3 {[%clk 0:00:01.9]} 35... Rc3 {[%clk 0:00:22.1]} 36. Qe2 {[%clk 0:00:02.2]}
36... Bg4 {[%clk 0:00:20.6]} 37. f3 {[%clk 0:00:02.2]} 37... Be6 {[%clk
0:00:21]} 38. Bf2 {[%clk 0:00:02.6]} 38... Rc8 {[%clk 0:00:20.5]} 39. Qa6 {[%clk
0:00:02.9]} 39... Rxf3 {[%clk 0:00:19.9]} 40. Qb6 {[%clk 0:00:02.5]} 40... Rxg3+
{[%clk 0:00:18.4]} 41. Kh1 {[%clk 0:00:02.2]} 41... Rc3 {[%clk 0:00:17.9]} 42.
Qxc7 {[%clk 0:00:02.5]} 42... R8xc7 {[%clk 0:00:17.3]} 43. Bb6 {[%clk
0:00:03.1]} 43... Rc8 {[%clk 0:00:16.1]} 44. Bxa5 {[%clk 0:00:03.5]} 44... Bxh4
{[%clk 0:00:15.1]} 45. Bxb4 {[%clk 0:00:02.8]} 45... Rxc2 {[%clk 0:00:15.5]} 46.
Bxd6 {[%clk 0:00:01.6]} 46... Rxd2 {[%clk 0:00:15.2]} 47. Rxd2 {[%clk
0:00:01.6]} 47... Rc1 {[%clk 0:00:15.6]} 48. Kg2 {[%clk 0:00:02.1]} 48... Bxb3
{[%clk 0:00:14.5]} 49. a5 {[%clk 0:00:01.7]} 49... Ra1 {[%clk 0:00:13.2]} 50. a6
{[%clk 0:00:01.7]} 50... Bf6 {[%clk 0:00:10.8]} 51. Rb2 {[%clk 0:00:02]} 51...
Be6 {[%clk 0:00:09.8]} 52. Rb8+ {[%clk 0:00:02.9]} 52... Kg7 {[%clk 0:00:09.4]}
53. Rb7 {[%clk 0:00:03.5]} 53... Bc8 {[%clk 0:00:08.7]} 54. Rb6 {[%clk
0:00:03.3]} 54... Ra2+ {[%clk 0:00:08.3]} 55. Kg1 {[%clk 0:00:03.3]} 55... h4
{[%clk 0:00:08.7]} 56. Bc7 {[%clk 0:00:03.1]} 56... Ra1 {[%clk 0:00:08.2]} 57.
Kf2 {[%clk 0:00:02.9]} 57... Ra2+ {[%clk 0:00:08.5]} 58. Ke1 {[%clk 0:00:02.8]}
58... h3 {[%clk 0:00:09]} 59. Rb8 {[%clk 0:00:02.3]} 59... Ra1+ {[%clk 0:00:09]}
60. Kf2 {[%clk 0:00:02.4]} 60... Bxa6 {[%clk 0:00:09.4]} 61. Bxh3 {[%clk
0:00:02.4]} 61... Ra2+ {[%clk 0:00:08.1]} 62. Kg3 {[%clk 0:00:02.8]} 62... Ra3+
{[%clk 0:00:07.9]} 63. Kh2 {[%clk 0:00:03.2]} 63... Bd3 {[%clk 0:00:08]} 64. Bg2
{[%clk 0:00:03.4]} 64... Ra2 {[%clk 0:00:08.3]} 65. Kg1 {[%clk 0:00:03.5]} 65...
Bh4 {[%clk 0:00:08.2]} 66. Rd8 {[%clk 0:00:03.6]} 66... Bf6 {[%clk 0:00:08.3]}
67. Rxd3 {[%clk 0:00:03.1]} 67... Ra1+ {[%clk 0:00:09.2]} 68. Kh2 {[%clk
0:00:03.3]} 68... Ra2 {[%clk 0:00:09.6]} 69. Bd6 {[%clk 0:00:03.6]} 69... Rc2
{[%clk 0:00:09.8]} 70. Bb4 {[%clk 0:00:03.7]} 70... Rb2 {[%clk 0:00:10.1]} 71.
Bd2 {[%clk 0:00:03.8]} 71... Rc2 {[%clk 0:00:10.2]} 72. Be3 {[%clk 0:00:04.1]}
72... Re2 {[%clk 0:00:10.1]} 73. Kg3 {[%clk 0:00:04.4]} 73... Rc2 {[%clk
0:00:09.9]} 74. Bf3 {[%clk 0:00:04.6]} 74... Rb2 {[%clk 0:00:09.8]} 75. Bd2
{[%clk 0:00:04.8]} 75... Rc2 {[%clk 0:00:10]} 76. Bc3 {[%clk 0:00:04.9]} 76...
Ra2 {[%clk 0:00:10.2]} 77. Bd1 {[%clk 0:00:05.2]} 77... Ra3 {[%clk 0:00:09.9]}
78. Bc2 {[%clk 0:00:04.9]} 78... Ra2 {[%clk 0:00:10.2]} 79. Bb3 {[%clk
0:00:04.5]} 79... Re2 {[%clk 0:00:10.4]} 80. Kf3 {[%clk 0:00:03.7]} 80... Rh2
{[%clk 0:00:10]} 81. Kg4 {[%clk 0:00:02.3]} 81... Rh4+ {[%clk 0:00:09.1]} 82.
Kf3 {[%clk 0:00:02.7]} 82... Rh3+ {[%clk 0:00:09.2]} 83. Ke2 {[%clk 0:00:03.1]}
83... Rxd3 {[%clk 0:00:08.3]} 84. Kxd3 {[%clk 0:00:04]} 84... Kf8 {[%clk
0:00:08.3]} 85. Bb4+ {[%clk 0:00:04.1]} 85... Kg7 {[%clk 0:00:08.7]} 86. Ke2
{[%clk 0:00:04]} 86... Kg8 {[%clk 0:00:08.6]} 87. Kf3 {[%clk 0:00:04.3]} 87...
Kg7 {[%clk 0:00:09.2]} 88. Kg4 {[%clk 0:00:04.8]} 88... Kg8 {[%clk 0:00:09.8]}
89. Bd2 {[%clk 0:00:05.1]} 89... Kg7 {[%clk 0:00:10.3]} 90. Bc1 {[%clk
0:00:05.6]} 90... Kg8 {[%clk 0:00:10.4]} 91. Be3 {[%clk 0:00:06.3]} 91... Kg7
{[%clk 0:00:10.9]} 92. Bd2 {[%clk 0:00:06.7]} 92... Be7 {[%clk 0:00:11.3]} 93.
Bc4 {[%clk 0:00:07.3]} 93... Bf6 {[%clk 0:00:11.8]} 94. Bd5 {[%clk 0:00:07.4]}
94... Be7 {[%clk 0:00:12.2]} 95. Kf3 {[%clk 0:00:07.7]} 95... Bf6 {[%clk
0:00:12.7]} 96. Bc3 {[%clk 0:00:06.8]} 96... Kg8 {[%clk 0:00:12.6]} 97. Kg4
{[%clk 0:00:07.2]} 97... Kg7 {[%clk 0:00:13]} 98. Bc6 {[%clk 0:00:07.5]} 98...
Kg8 {[%clk 0:00:13.4]} 99. Bb4 {[%clk 0:00:07.8]} 99... Kg7 {[%clk 0:00:13.7]}
100. Bd7 {[%clk 0:00:07.3]} 100... Kg8 {[%clk 0:00:13.9]} 101. Kf3 {[%clk
0:00:06.9]} 101... Kg7 {[%clk 0:00:14.4]} 102. Bd6 {[%clk 0:00:07.3]} 102... Kg8
{[%clk 0:00:14.5]} 103. Ba3 {[%clk 0:00:07.3]} 103... Kg7 {[%clk 0:00:15]} 104.
Ke2 {[%clk 0:00:07.8]} 104... Kg8 {[%clk 0:00:15.6]} 105. Kd3 {[%clk 0:00:08.3]}
105... Kg7 {[%clk 0:00:16.2]} 106. Kc4 {[%clk 0:00:08.6]} 106... Bg5 {[%clk
0:00:15.5]} 107. Kd5 {[%clk 0:00:08.3]} 107... Bf4 {[%clk 0:00:14.9]} 108. Bc5
{[%clk 0:00:05.6]} 108... f5 {[%clk 0:00:15.1]} 109. exf5 {[%clk 0:00:03.1]}
109... gxf5 {[%clk 0:00:16]} 110. Bxf5 {[%clk 0:00:03.9]} 110... Kf6 {[%clk
0:00:16.5]} 111. Ke4 {[%clk 0:00:04.1]} 111... Kg7 {[%clk 0:00:15.8]} 112. Bg4
{[%clk 0:00:03.6]} 112... Bc1 {[%clk 0:00:15.2]} 113. Kxe5 {[%clk 0:00:02.9]}
113... Bb2+ {[%clk 0:00:15.7]} 114. Ke4 {[%clk 0:00:02.8]} 114... Kh8 {[%clk
0:00:16.2]} 115. Kf5 {[%clk 0:00:02.5]} 115... Ba1 {[%clk 0:00:16.3]} 116. Ke4
{[%clk 0:00:02.7]} 116... Bb2 {[%clk 0:00:16.7]} 117. Kd3 {[%clk 0:00:03.1]}
117... Bg7 {[%clk 0:00:17.1]} 118. Kc2 {[%clk 0:00:04]} 118... Bf6 {[%clk
0:00:17.5]} 119. Bf2 {[%clk 0:00:04.5]} 119... Bg7 {[%clk 0:00:18.4]} 120. Be1
{[%clk 0:00:04.9]} 120... Bf6 {[%clk 0:00:18.9]} 121. Bf2 {[%clk 0:00:05.3]}
121... Bg7 {[%clk 0:00:19.4]} 122. Bh4 {[%clk 0:00:05.8]} 122... Kh7 {[%clk
0:00:19]} 123. Bf5+ {[%clk 0:00:05.9]} 123... Kh8 {[%clk 0:00:19.4]} 124. Bd3
{[%clk 0:00:06.8]} 124... Be5 {[%clk 0:00:19.7]} 125. Kb3 {[%clk 0:00:07]}
125... Bg7 {[%clk 0:00:20.6]} 126. Kc4 {[%clk 0:00:07.3]} 126... Be5 {[%clk
0:00:21.2]} 127. Bg5 {[%clk 0:00:07.6]} 127... Bg7 {[%clk 0:00:21.6]} 128. Bf4
{[%clk 0:00:08.1]} 128... Ba1 {[%clk 0:00:22.1]} 129. Kd5 {[%clk 0:00:08.4]}
129... Bg7 {[%clk 0:00:22.5]} 130. Ke6 {[%clk 0:00:08.8]} 130... Ba1 {[%clk
0:00:22.4]} 131. Kf7 {[%clk 0:00:09.7]} 131... Bg7 {[%clk 0:00:22.4]} 132. Bd2
{[%clk 0:00:10.1]} 132... Ba1 {[%clk 0:00:22.2]} 133. Bc1 {[%clk 0:00:10.5]}
133... Bc3 {[%clk 0:00:22.3]} 134. Bg5 {[%clk 0:00:10.7]} 134... Bb2 {[%clk
0:00:22.2]} 135. Kg6 {[%clk 0:00:10.7]} 135... Bc3 {[%clk 0:00:22.2]} 136. Bf6+
{[%clk 0:00:11.1]} 136... Bxf6 {[%clk 0:00:22.3]} 1/2-1/2

[Event "*** Titled Tuesday Blitz"]
[Site "Chess.com"]
[Date "2020.10.20"]
[Round "6"]
[White "Annawel"]
[Black "LyonBeast"]
[Result "1/2-1/2"]
[WhiteElo "2936"]
[BlackElo "3035"]
[TimeControl "180+1"]
[EndTime "11:02:54 PDT"]
[Termination "Game drawn by agreement"]

1. Nf3 {[%clk 0:02:59.1]} 1... d5 {[%clk 0:02:58.2]} 2. g3 {[%clk 0:02:58.3]}
2... g6 {[%clk 0:02:56.8]} 3. Bg2 {[%clk 0:02:58.2]} 3... Bg7 {[%clk 0:02:54.4]}
4. O-O {[%clk 0:02:56.4]} 4... Nf6 {[%clk 0:02:53.5]} 5. d4 {[%clk 0:02:53.2]}
5... O-O {[%clk 0:02:52.8]} 6. c3 {[%clk 0:02:49.8]} 6... c6 {[%clk 0:02:51.6]}
7. Nbd2 {[%clk 0:02:46.9]} 7... Bf5 {[%clk 0:02:50.3]} 8. Nh4 {[%clk 0:02:45.9]}
8... Be6 {[%clk 0:02:50]} 9. Re1 {[%clk 0:02:44]} 9... Nbd7 {[%clk 0:02:49.7]}
10. e4 {[%clk 0:02:43.9]} 10... dxe4 {[%clk 0:02:49.8]} 11. Nxe4 {[%clk
0:02:44.8]} 11... Nxe4 {[%clk 0:02:50.5]} 12. Bxe4 {[%clk 0:02:45.7]} 12... Bd5
{[%clk 0:02:50.3]} 13. Bg2 {[%clk 0:02:38.1]} 13... Bxg2 {[%clk 0:02:48.6]} 14.
Kxg2 {[%clk 0:02:34.1]} 14... e5 {[%clk 0:02:46.7]} 15. Nf3 {[%clk 0:02:30.6]}
15... exd4 {[%clk 0:02:44.8]} 16. Nxd4 {[%clk 0:02:31.5]} 16... Nb6 {[%clk
0:02:42.3]} 1/2-1/2

[Event "*** Titled Tuesday Blitz"]
[Site "Chess.com"]
[Date "2020.10.20"]
[Round "6"]
[White "stolencandy13"]
[Black "ftorodent"]
[Result "0-1"]
[WhiteElo "2465"]
[BlackElo "2667"]
[TimeControl "180+1"]
[EndTime "11:04:11 PDT"]
[Termination "ftorodent won by resignation"]

1. d4 {[%clk 0:02:57.3]} 1... f5 {[%clk 0:02:59.4]} 2. Bg5 {[%clk 0:02:51.5]}
2... g6 {[%clk 0:02:57.5]} 3. g4 {[%clk 0:02:43.9]} 3... d5 {[%clk 0:02:50.9]}
4. gxf5 {[%clk 0:02:35.8]} 4... Bxf5 {[%clk 0:02:50.6]} 5. e3 {[%clk 0:02:27.2]}
5... Qd7 {[%clk 0:02:43.1]} 6. Bd3 {[%clk 0:02:24.4]} 6... Nc6 {[%clk
0:02:41.9]} 7. Nd2 {[%clk 0:02:16.4]} 7... e5 {[%clk 0:02:25.6]} 8. c3 {[%clk
0:02:11.3]} 8... Bxd3 {[%clk 0:02:24.2]} 9. Qb3 {[%clk 0:01:49.6]} 9... Be7
{[%clk 0:02:23.1]} 10. Bxe7 {[%clk 0:01:48.8]} 10... Ngxe7 {[%clk 0:02:23]} 11.
O-O-O {[%clk 0:01:49.7]} 11... O-O-O {[%clk 0:02:20.4]} 12. Ngf3 {[%clk
0:01:44.8]} 12... e4 {[%clk 0:02:19.7]} 13. Ng5 {[%clk 0:01:44.4]} 13... Qf5
{[%clk 0:02:18.2]} 14. f4 {[%clk 0:01:41.8]} 14... h6 {[%clk 0:02:16.5]} 0-1

[Event "*** Titled Tuesday Blitz"]
[Site "Chess.com"]
[Date "2020.10.20"]
[Round "6"]
[White "sjam6687"]
[Black "chito89"]
[Result "1-0"]
[WhiteElo "2658"]
[BlackElo "2799"]
[TimeControl "180+1"]
[EndTime "11:04:23 PDT"]
[Termination "sjam6687 won by resignation"]

1. d4 {[%clk 0:03:00.9]} 1... Nf6 {[%clk 0:02:53.4]} 2. c4 {[%clk 0:03:00.9]}
2... e6 {[%clk 0:02:53.5]} 3. Nf3 {[%clk 0:02:59.1]} 3... Bb4+ {[%clk
0:02:53.8]} 4. Bd2 {[%clk 0:02:59]} 4... a5 {[%clk 0:02:53.8]} 5. Qc2 {[%clk
0:02:56.1]} 5... O-O {[%clk 0:02:47.5]} 6. e4 {[%clk 0:02:56]} 6... d6 {[%clk
0:02:45.6]} 7. Bd3 {[%clk 0:02:52.9]} 7... e5 {[%clk 0:02:35.6]} 8. O-O {[%clk
0:02:45.8]} 8... Nc6 {[%clk 0:02:34.2]} 9. d5 {[%clk 0:02:42.3]} 9... Ne7 {[%clk
0:02:32.1]} 10. a3 {[%clk 0:02:39.7]} 10... Bc5 {[%clk 0:02:13.7]} 11. Nc3
{[%clk 0:02:33.1]} 11... Ng6 {[%clk 0:02:14.1]} 12. h3 {[%clk 0:02:20.7]} 12...
Nh5 {[%clk 0:02:12.3]} 13. Ne2 {[%clk 0:02:16.5]} 13... Qf6 {[%clk 0:01:35.3]}
14. Bg5 {[%clk 0:02:07.5]} 1-0

[Event "*** Titled Tuesday Blitz"]
[Site "Chess.com"]
[Date "2020.10.20"]
[Round "6"]
[White "MalyDominator"]
[Black "talman67"]
[Result "0-1"]
[WhiteElo "2371"]
[BlackElo "2530"]
[TimeControl "180+1"]
[EndTime "11:04:51 PDT"]
[Termination "talman67 won by resignation"]

1. e4 {[%clk 0:03:00.9]} 1... c5 {[%clk 0:02:57.1]} 2. Nf3 {[%clk 0:03:01]} 2...
d6 {[%clk 0:02:57.5]} 3. d4 {[%clk 0:03:00.9]} 3... cxd4 {[%clk 0:02:58.4]} 4.
Nxd4 {[%clk 0:03:01.5]} 4... Nf6 {[%clk 0:02:59]} 5. Nc3 {[%clk 0:03:01.4]} 5...
Nc6 {[%clk 0:02:59.1]} 6. Bg5 {[%clk 0:03:01.2]} 6... e6 {[%clk 0:02:59.1]} 7.
Qd2 {[%clk 0:03:01.6]} 7... a6 {[%clk 0:02:58.3]} 8. O-O-O {[%clk 0:03:02.1]}
8... Bd7 {[%clk 0:02:58.8]} 9. f4 {[%clk 0:03:01.8]} 9... Be7 {[%clk 0:02:58]}
10. Nf3 {[%clk 0:03:01]} 10... h6 {[%clk 0:02:53.3]} 11. Bxf6 {[%clk 0:02:55.4]}
11... gxf6 {[%clk 0:02:54.2]} 12. g3 {[%clk 0:02:52.4]} 12... b5 {[%clk
0:02:54.5]} 13. f5 {[%clk 0:02:49.9]} 13... Qb6 {[%clk 0:02:51.8]} 14. Bh3
{[%clk 0:02:46.7]} 14... b4 {[%clk 0:02:34.3]} 15. Ne2 {[%clk 0:02:45.4]} 15...
e5 {[%clk 0:02:15.7]} 16. g4 {[%clk 0:02:24.9]} 16... a5 {[%clk 0:02:06.6]} 17.
Ng3 {[%clk 0:02:24.4]} 17... a4 {[%clk 0:02:03.9]} 18. Nf1 {[%clk 0:02:17.5]}
18... b3 {[%clk 0:01:58]} 19. a3 {[%clk 0:01:57.6]} 19... bxc2 {[%clk
0:01:50.9]} 20. Kxc2 {[%clk 0:01:51.9]} 20... Qb3+ {[%clk 0:01:48.6]} 21. Kb1
{[%clk 0:01:51.6]} 21... Qxf3 {[%clk 0:01:49.5]} 0-1

[Event "*** Titled Tuesday Blitz"]
[Site "Chess.com"]
[Date "2020.10.20"]
[Round "6"]
[White "Mbneu"]
[Black "MoreChessJulia"]
[Result "1-0"]
[WhiteElo "2229"]
[BlackElo "1990"]
[TimeControl "180+1"]
[EndTime "11:04:52 PDT"]
[Termination "Mbneu won by resignation"]

1. d4 {[%clk 0:03:00.9]} 1... g6 {[%clk 0:02:59.1]} 2. c4 {[%clk 0:03:01.2]}
2... Bg7 {[%clk 0:02:59]} 3. f4 {[%clk 0:03:01.8]} 3... c5 {[%clk 0:02:57.1]} 4.
d5 {[%clk 0:03:01.3]} 4... d6 {[%clk 0:02:55.7]} 5. e4 {[%clk 0:03:00.4]} 5...
h5 {[%clk 0:02:54.6]} 6. Be2 {[%clk 0:02:58.4]} 6... Nh6 {[%clk 0:02:53.3]} 7.
Nf3 {[%clk 0:02:57.6]} 7... Bg4 {[%clk 0:02:52.1]} 8. h3 {[%clk 0:02:56.7]} 8...
Bxf3 {[%clk 0:02:50.9]} 9. Bxf3 {[%clk 0:02:57.6]} 9... Nd7 {[%clk 0:02:50.1]}
10. O-O {[%clk 0:02:56.4]} 10... f5 {[%clk 0:02:50]} 11. Nd2 {[%clk 0:02:52.8]}
11... O-O {[%clk 0:02:49]} 12. exf5 {[%clk 0:02:42.7]} 12... Nxf5 {[%clk
0:02:47.9]} 13. Ne4 {[%clk 0:02:43.2]} 13... Bd4+ {[%clk 0:02:40.5]} 14. Kh2
{[%clk 0:02:40.3]} 14... Nf6 {[%clk 0:02:40.2]} 15. Ng5 {[%clk 0:02:39]} 15...
Qd7 {[%clk 0:02:15.2]} 16. Qe1 {[%clk 0:02:16.8]} 16... Nh7 {[%clk 0:02:06.9]}
17. Ne6 {[%clk 0:02:12]} 17... Bf6 {[%clk 0:02:05.8]} 18. Be4 {[%clk 0:02:02.6]}
18... Bh4 {[%clk 0:02:02.3]} 19. Nxf8 {[%clk 0:01:51.8]} 19... Rxf8 {[%clk
0:01:58.1]} 20. Bxf5 {[%clk 0:01:51]} 1-0

[Event "*** Titled Tuesday Blitz"]
[Site "Chess.com"]
[Date "2020.10.20"]
[Round "6"]
[White "Belka1989"]
[Black "GlennTipton"]
[Result "1-0"]
[WhiteElo "2296"]
[BlackElo "2416"]
[TimeControl "180+1"]
[EndTime "11:04:59 PDT"]
[Termination "Belka1989 won by resignation"]

1. d4 {[%clk 0:03:00.9]} 1... Nf6 {[%clk 0:02:59.5]} 2. Nf3 {[%clk 0:03:01.3]}
2... g6 {[%clk 0:02:55.2]} 3. Bf4 {[%clk 0:03:01.1]} 3... Bg7 {[%clk 0:02:54.2]}
4. e3 {[%clk 0:03:01.7]} 4... O-O {[%clk 0:02:55.1]} 5. Be2 {[%clk 0:03:01.2]}
5... b6 {[%clk 0:02:55.6]} 6. O-O {[%clk 0:03:01.5]} 6... Bb7 {[%clk 0:02:56.5]}
7. h3 {[%clk 0:03:02]} 7... d6 {[%clk 0:02:56.6]} 8. a4 {[%clk 0:03:02.5]} 8...
a6 {[%clk 0:02:56.8]} 9. c3 {[%clk 0:03:02.7]} 9... Nbd7 {[%clk 0:02:57.3]} 10.
Nbd2 {[%clk 0:03:03.2]} 10... Ne4 {[%clk 0:02:57.2]} 11. Bh2 {[%clk 0:03:00.4]}
11... e5 {[%clk 0:02:56.1]} 12. Nxe4 {[%clk 0:02:57.8]} 12... Bxe4 {[%clk
0:02:56]} 13. Nd2 {[%clk 0:02:58.6]} 13... Bb7 {[%clk 0:02:55.6]} 14. Bf3 {[%clk
0:02:59.1]} 14... d5 {[%clk 0:02:53.6]} 15. Qb3 {[%clk 0:02:44.6]} 15... e4
{[%clk 0:02:47]} 16. Be2 {[%clk 0:02:42.6]} 16... c5 {[%clk 0:02:31.3]} 17. dxc5
{[%clk 0:02:41.7]} 17... Nxc5 {[%clk 0:02:30.5]} 18. Qa3 {[%clk 0:02:39.5]}
18... f5 {[%clk 0:02:16.5]} 19. a5 {[%clk 0:02:35.9]} 19... Rc8 {[%clk
0:02:07.5]} 20. Rfd1 {[%clk 0:02:33.8]} 20... b5 {[%clk 0:02:03.3]} 21. Nb3
{[%clk 0:02:27.9]} 21... Nxb3 {[%clk 0:01:54.9]} 22. Qxb3 {[%clk 0:02:28.8]}
22... Qe7 {[%clk 0:01:53.5]} 23. Rd2 {[%clk 0:02:11]} 23... Be5 {[%clk
0:01:47.7]} 24. Bxe5 {[%clk 0:02:07.7]} 24... Qxe5 {[%clk 0:01:48.6]} 25. g3
{[%clk 0:02:08]} 25... g5 {[%clk 0:01:46]} 26. Rad1 {[%clk 0:02:07.2]} 26... f4
{[%clk 0:01:46.1]} 27. Rxd5 {[%clk 0:02:03.4]} 27... Bxd5 {[%clk 0:01:43.8]} 28.
Rxd5 {[%clk 0:02:04.3]} 28... Qe7 {[%clk 0:01:41.9]} 29. Rd7+ {[%clk 0:02:01.8]}
1-0

[Event "*** Titled Tuesday Blitz"]
[Site "Chess.com"]
[Date "2020.10.20"]
[Round "6"]
[White "AurumO"]
[Black "rugbyclub"]
[Result "1-0"]
[WhiteElo "1965"]
[BlackElo "2180"]
[TimeControl "180+1"]
[EndTime "11:05:30 PDT"]
[Termination "AurumO won by resignation"]

1. e4 {[%clk 0:03:00.9]} 1... e6 {[%clk 0:03:00.1]} 2. d4 {[%clk 0:03:00.8]}
2... d5 {[%clk 0:03:00.7]} 3. exd5 {[%clk 0:03:01.7]} 3... exd5 {[%clk
0:03:00.3]} 4. Bd3 {[%clk 0:03:00.1]} 4... Nc6 {[%clk 0:02:59]} 5. Nf3 {[%clk
0:02:59.9]} 5... Bd6 {[%clk 0:02:58.9]} 6. c3 {[%clk 0:02:59]} 6... Nge7 {[%clk
0:02:56.2]} 7. O-O {[%clk 0:02:58.6]} 7... Bg4 {[%clk 0:02:55.9]} 8. a4 {[%clk
0:02:57.7]} 8... Qd7 {[%clk 0:02:51.1]} 9. a5 {[%clk 0:02:57.7]} 9... f6 {[%clk
0:02:43.1]} 10. b4 {[%clk 0:02:57.2]} 10... Ng6 {[%clk 0:02:37.9]} 11. Re1+
{[%clk 0:02:57.2]} 11... Nce7 {[%clk 0:02:36.9]} 12. Nbd2 {[%clk 0:02:38.7]}
12... O-O-O {[%clk 0:02:30.1]} 13. b5 {[%clk 0:02:36.9]} 13... Nh4 {[%clk
0:02:17.9]} 14. b6 {[%clk 0:02:33.2]} 14... cxb6 {[%clk 0:02:16.8]} 15. axb6
{[%clk 0:02:33]} 15... a6 {[%clk 0:02:17.5]} 16. c4 {[%clk 0:02:30.6]} 16... Bb8
{[%clk 0:02:06.5]} 17. cxd5 {[%clk 0:02:28.8]} 17... Nxf3+ {[%clk 0:01:41.7]}
18. Nxf3 {[%clk 0:02:26.2]} 18... Bxf3 {[%clk 0:01:41.2]} 19. Qc2+ {[%clk
0:02:03.8]} 19... Nc6 {[%clk 0:01:39.2]} 20. Bf5 {[%clk 0:01:39.8]} 20... Bxd5
{[%clk 0:01:20.9]} 21. Bxd7+ {[%clk 0:01:32.8]} 21... Kxd7 {[%clk 0:01:21.8]}
22. Qf5+ {[%clk 0:01:28.7]} 1-0

[Event "*** Titled Tuesday Blitz"]
[Site "Chess.com"]
[Date "2020.10.20"]
[Round "6"]
[White "NotFischer"]
[Black "onetowin"]
[Result "1-0"]
[WhiteElo "2251"]
[BlackElo "2101"]
[TimeControl "180+1"]
[EndTime "11:06:03 PDT"]
[Termination "NotFischer won by resignation"]

1. e4 {[%clk 0:02:59.4]} 1... c5 {[%clk 0:02:56.2]} 2. Nc3 {[%clk 0:02:59.5]}
2... e6 {[%clk 0:02:55.4]} 3. g3 {[%clk 0:02:59.4]} 3... Nc6 {[%clk 0:02:55.4]}
4. Bg2 {[%clk 0:02:59.6]} 4... Nf6 {[%clk 0:02:54.2]} 5. Nge2 {[%clk 0:02:59.5]}
5... d5 {[%clk 0:02:50.2]} 6. d3 {[%clk 0:02:59.5]} 6... Be7 {[%clk 0:02:49.8]}
7. exd5 {[%clk 0:02:58.5]} 7... exd5 {[%clk 0:02:48.4]} 8. O-O {[%clk
0:02:58.7]} 8... O-O {[%clk 0:02:47.7]} 9. d4 {[%clk 0:02:57]} 9... cxd4 {[%clk
0:02:33.9]} 10. Nxd4 {[%clk 0:02:57.2]} 10... Nxd4 {[%clk 0:02:30.9]} 11. Qxd4
{[%clk 0:02:57]} 11... Be6 {[%clk 0:02:31.3]} 12. h3 {[%clk 0:02:51.8]} 12... a6
{[%clk 0:02:21.1]} 13. Be3 {[%clk 0:02:50.5]} 13... Rc8 {[%clk 0:02:19.3]} 14.
Qd2 {[%clk 0:02:49.6]} 14... Bb4 {[%clk 0:02:03.2]} 15. Bd4 {[%clk 0:02:49.7]}
15... Ne4 {[%clk 0:01:56.2]} 16. Qe3 {[%clk 0:02:43.1]} 16... Nxc3 {[%clk
0:01:52.2]} 17. bxc3 {[%clk 0:02:44]} 17... Be7 {[%clk 0:01:46.2]} 18. Rfe1
{[%clk 0:02:41.6]} 18... Bf6 {[%clk 0:01:43.4]} 19. Rab1 {[%clk 0:02:39.9]}
19... Qd7 {[%clk 0:01:41.6]} 20. Bxf6 {[%clk 0:02:39.5]} 20... gxf6 {[%clk
0:01:38.8]} 21. Kh2 {[%clk 0:02:39.4]} 21... Kh8 {[%clk 0:01:28.7]} 22. Qd4
{[%clk 0:02:38.6]} 22... Qd8 {[%clk 0:01:24.6]} 23. Rxb7 {[%clk 0:02:37]} 23...
Rc4 {[%clk 0:01:23.3]} 24. Qd2 {[%clk 0:02:30.4]} 24... Qc8 {[%clk 0:01:20.5]}
25. Qh6 {[%clk 0:02:21.8]} 25... Rg8 {[%clk 0:01:12.7]} 26. Qxf6+ {[%clk
0:02:03.8]} 26... Rg7 {[%clk 0:01:12.8]} 27. Rxe6 {[%clk 0:01:49.9]} 27... Qxe6
{[%clk 0:01:03.6]} 28. Rb8+ {[%clk 0:01:50]} 28... Rc8 {[%clk 0:01:00.8]} 29.
Qxe6 {[%clk 0:01:50.4]} 29... fxe6 {[%clk 0:01:00.8]} 30. Rxc8+ {[%clk
0:01:50.7]} 30... Rg8 {[%clk 0:01:00.9]} 31. Rxg8+ {[%clk 0:01:48.8]} 31... Kxg8
{[%clk 0:01:01.8]} 32. Bf1 {[%clk 0:01:49.3]} 32... Kf7 {[%clk 0:01:02.3]} 33.
Bxa6 {[%clk 0:01:49.4]} 1-0